fUSD/lending_fUSD_20240918
["ID","MTS","AMOUNT","RATE_DAILY","PERIOD"]
[338488924,1726699850717,-1020.95,0.0001452,2]
[338488925,1726699850728,-1020.95,0.0001452,2]
[338488926,1726699850739,-500.0,0.0001452,2]
[338488927,1726699850749,-1020.95,0.0001452,2]
[338488928,1726699850759,-1020.95,0.0001452,2]
[338488929,1726699850770,-1020.95,0.0001452,2]
[338488930,1726699850780,-1020.95,0.0001452,2]
[338488931,1726699850790,-1020.95,0.0001452,2]
[338488932,1726699850800,-2309.96,0.0001452,2]
[338488933,1726699850810,-1020.95,0.0001452,2]
[338488934,1726699850820,-1020.95,0.0001452,2]
[338488935,1726699850830,-1020.95,0.0001452,2]
[338488936,1726699850840,-1020.95,0.0001452,2]
[338488937,1726699850851,-1020.95,0.0001452,2]
[338488938,1726699850861,-1020.95,0.0001452,2]
[338488939,1726699850872,-246.3929052,0.0001452,2]
[338488940,1726699850882,-500.0,0.0001452,2]
[338488941,1726699850892,-500.0,0.0001452,2]
[338488942,1726699850903,-610.37,0.0001452,2]
[338488943,1726699850913,-779.24,0.0001452,2]
[338488944,1726699850922,-522.62,0.0001452,2]
[338488945,1726699850933,-1387.99,0.0001452,2]
[338488946,1726699850944,-888.91,0.0001452,2]
[338488947,1726699850954,-1057.14,0.0001452,2]
[338488948,1726699850964,-500.0,0.0001452,2]
[338488949,1726699850975,-151.0,0.0001452,2]
[338488950,1726699850985,-151.0,0.0001452,2]
[338488951,1726699850995,-151.0,0.0001452,2]
[338488952,1726699851005,-3855.32,0.0001452,2]
[338488953,1726699851015,-500.0,0.0001452,2]
[338488954,1726699851024,-151.0,0.0001452,2]
[338488955,1726699851034,-500.0,0.0001452,2]
[338488956,1726699851044,-3522.53,0.0001452,2]
[338488957,1726699851056,-4844.12,0.0001452,2]
[338488958,1726699851067,-500.0,0.0001452,2]
[338488959,1726699851079,-500.0,0.0001452,2]
[338488960,1726699851091,-6555.59,0.0001452,2]
[338488961,1726699851103,-500.0,0.0001452,2]
[338488962,1726699851114,-3084.61,0.0001452,2]
[338488963,1726699851124,-500.88,0.0001452,2]
[338488964,1726699851134,-500.0,0.0001452,2]
[338488965,1726699851144,-899.57,0.0001452,2]
[338488966,1726699851156,-500.0,0.0001452,2]
[338488967,1726699851166,-1976.24,0.0001452,2]
[338488968,1726699851176,-3367.79,0.0001452,2]
[338488969,1726699851187,-500.0,0.0001452,2]
[338488970,1726699851198,-4477.41,0.0001452,2]
[338488971,1726699851208,-2314.18,0.0001452,2]
[338488972,1726699851218,-1323.53084294,0.0001452,2]
[338488973,1726699852411,-5426.46915706,0.0001452,2]
[338488974,1726699852422,-628.85,0.0001452,2]
[338488975,1726699852431,-2651.9,0.0001452,2]
[338488976,1726699852442,-500.0,0.0001452,2]
[338488977,1726699852453,-500.0,0.0001452,2]
[338488978,1726699852463,-500.0,0.0001452,2]
[338488979,1726699852473,-1661.03,0.0001452,2]
[338488980,1726699852483,-500.0,0.0001452,2]
[338488981,1726699852493,-540.5,0.0001452,2]
[338488982,1726699852503,-500.0,0.0001452,2]
[338488983,1726699852512,-500.0,0.0001452,2]
[338488984,1726699852521,-500.0,0.0001452,2]
[338488985,1726699852531,-6386.82,0.0001452,2]
[338488986,1726699852541,-3309.06,0.0001452,2]
[338488987,1726699852552,-500.0,0.0001452,2]
[338488988,1726699852563,-217.632547,0.0001452,2]
[338488989,1726699852572,-500.0,0.0001452,2]
[338488990,1726699852582,-797.46,0.0001452,2]
[338488991,1726699852591,-217.632547,0.0001452,2]
[338488992,1726699852602,-2417.54,0.0001452,2]
[338488993,1726699852612,-217.632547,0.0001452,2]
[338488994,1726699852621,-217.632547,0.0001452,2]
[338488995,1726699852630,-217.632547,0.0001452,2]
[338488996,1726699852639,-2224.66,0.0001452,2]
[338488997,1726699852649,-217.632547,0.0001452,2]
[338488998,1726699852659,-1273.99,0.0001452,2]
[338488999,1726699852669,-1734.14,0.0001452,2]
[338489000,1726699852678,-217.632547,0.0001452,2]
[338489001,1726699852687,-3721.1,0.0001452,2]
[338489002,1726699852698,-500.0,0.0001452,2]
[338489003,1726699852707,-217.632547,0.0001452,2]
[338489004,1726699852716,-500.0,0.0001452,2]
[338489005,1726699852726,-217.632547,0.0001452,2]
[338489006,1726699852735,-217.632547,0.0001452,2]
[338489007,1726699852744,-217.632547,0.0001452,2]
[338489008,1726699852754,-217.632547,0.0001452,2]
[338489009,1726699852763,-1878.69,0.0001452,2]
[338489010,1726699852773,-1110.35,0.0001452,2]
[338489011,1726699852782,-500.0,0.0001452,2]
[338489012,1726699852792,-1477.2,0.0001452,2]
[338489013,1726699852801,-2934.56,0.0001452,2]
[338489014,1726699852811,-500.0,0.0001452,2]
[338489015,1726699852820,-2423.04,0.0001452,2]
[338489016,1726699852830,-749.17,0.0001452,2]
[338489017,1726699852839,-6532.84,0.0001452,2]
[338489018,1726699852849,-500.0,0.0001452,2]
[338489019,1726699852858,-806.65,0.0001452,2]
[338489020,1726699852868,-687.51,0.0001452,2]
[338489021,1726699852878,-500.0,0.0001452,2]
[338489022,1726699852887,-2362.73,0.0001452,2]
[338489023,1726699852897,-555.58,0.0001452,2]
[338489024,1726699852907,-500.0,0.0001452,2]
[338489025,1726699852917,-500.0,0.0001452,2]
[338489026,1726699852927,-818.4,0.0001452,2]
[338489027,1726699852938,-1446.5,0.0001452,2]
[338489028,1726699852948,-500.0,0.0001452,2]
[338489029,1726699852958,-500.0,0.0001452,2]
[338489030,1726699852967,-1156.17,0.0001452,2]
[338489031,1726699852977,-500.0,0.0001452,2]
[338489032,1726699852987,-8022.62,0.0001452,2]
[338489033,1726699852996,-2862.7,0.0001452,2]
[338489034,1726699853005,-800.0,0.0001452,2]
[338489035,1726699853016,-1814.34,0.0001452,2]
[338489036,1726699853026,-500.0,0.0001452,2]
[338489037,1726699853035,-500.0,0.0001452,2]
[338489038,1726699853043,-500.0,0.0001452,2]
[338489039,1726699853053,-500.0,0.0001452,2]
[338489040,1726699853063,-500.0,0.0001452,2]
[338489041,1726699853072,-1648.86,0.0001452,2]
[338489042,1726699853082,-500.0,0.0001452,2]
[338489043,1726699853091,-2242.58,0.0001452,2]
[338489044,1726699853101,-2257.62,0.0001452,2]
[338489045,1726699853111,-500.0,0.0001452,2]
[338489046,1726699853120,-3648.52,0.0001452,2]
[338489047,1726699853130,-500.0,0.0001452,2]
[338489048,1726699853139,-2999.82,0.0001452,2]
[338489049,1726699853148,-500.0,0.0001452,2]
[338489050,1726699853159,-500.0,0.0001452,2]
[338489051,1726699853168,-2520.07,0.0001452,2]
[338489052,1726699853178,-6671.99,0.0001452,2]
[338489053,1726699853187,-519.392686,0.0001452,2]
[338489054,1726699853197,-519.392686,0.0001452,2]
[338489055,1726699853207,-500.0,0.0001452,2]
[338489056,1726699853216,-500.0,0.0001452,2]
[338489057,1726699853226,-519.392686,0.0001452,2]
[338489058,1726699853236,-1295.93,0.0001452,2]
[338489059,1726699853246,-519.392686,0.0001452,2]
[338489060,1726699853255,-519.392686,0.0001452,2]
[338489061,1726699853265,-519.392686,0.0001452,2]
[338489062,1726699853274,-1682.56,0.0001452,2]
[338489063,1726699853284,-2533.87,0.0001452,2]
[338489064,1726699853293,-5268.9,0.0001452,2]
[338489065,1726699853303,-500.0,0.0001452,2]
[338489066,1726699853312,-519.392686,0.0001452,2]
[338489067,1726699853321,-500.0,0.0001452,2]
[338489068,1726699853331,-509.71303438,0.0001452,2]
[338489069,1726699853340,-519.392686,0.0001452,2]
[338489070,1726699853351,-519.392686,0.0001452,2]
[338489071,1726699853360,-5059.19,0.0001452,2]
[338489072,1726699853369,-519.392686,0.0001452,2]
[338489073,1726699853378,-519.392686,0.0001452,2]
[338489074,1726699853388,-1191.08,0.0001452,2]
[338489075,1726699853397,-1305.93,0.0001452,2]
[338489076,1726699853406,-205.670341,0.0001452,2]
[338489077,1726699853416,-519.392686,0.0001452,2]
[338489078,1726699853425,-205.670341,0.0001452,2]
[338489079,1726699853436,-205.670341,0.0001452,2]
[338489080,1726699853446,-205.670341,0.0001452,2]
[338489081,1726699853458,-205.670341,0.0001452,2]
[338489082,1726699853467,-205.670341,0.0001452,2]
[338489083,1726699853477,-500.0,0.0001452,2]
[338489084,1726699853486,-732.81,0.0001452,2]
[338489085,1726699853496,-772.88,0.0001452,2]
[338489086,1726699853505,-500.0,0.0001452,2]
[338489087,1726699853514,-930.9,0.0001452,2]
[338489088,1726699853523,-1194.96,0.0001452,2]
[338489089,1726699853532,-594.14,0.0001452,2]
[338489090,1726699853543,-3355.44,0.0001452,2]
[338489091,1726699853554,-543.72,0.0001452,2]
[338489092,1726699853565,-205.670341,0.0001452,2]
[338489093,1726699853574,-205.670341,0.0001452,2]
[338489094,1726699853583,-11312.94,0.0001452,2]
[338489095,1726699853592,-205.670341,0.0001452,2]
[338489096,1726699853602,-205.670341,0.0001452,2]
[338489097,1726699853612,-2280.16,0.0001452,2]
[338489098,1726699853622,-205.670341,0.0001452,2]
[338489099,1726699853632,-500.0,0.0001452,2]
[338489100,1726699853642,-205.670341,0.0001452,2]
[338489101,1726699853651,-879.98,0.0001452,2]
[338489102,1726699853661,-3481.2,0.0001452,2]
[338489103,1726699853671,-3333.06,0.0001452,2]
[338489104,1726699853680,-500.0,0.0001452,2]
[338489105,1726699853689,-541.37,0.0001452,2]
[338489106,1726699853699,-500.0,0.0001452,2]
[338489107,1726699853709,-500.0,0.0001452,2]
[338489108,1726699853719,-4602.13,0.0001452,2]
[338489109,1726699853728,-4012.9,0.0001452,2]
[338489110,1726699853738,-500.0,0.0001452,2]
[338489111,1726699853747,-700.52,0.0001452,2]
[338489112,1726699853756,-151.0,0.0001452,2]
[338489113,1726699853765,-151.0,0.0001452,2]
[338489114,1726699853775,-3245.27,0.0001452,2]
[338489115,1726699853784,-4979.38,0.0001452,2]
[338489116,1726699853794,-984.16,0.0001452,2]
[338489117,1726699853804,-500.0,0.0001452,2]
[338489118,1726699853814,-2152.32,0.0001452,2]
[338489119,1726699853823,-500.0,0.0001452,2]
[338489120,1726699853832,-6799.23,0.0001452,2]
[338489121,1726699853842,-2520.4,0.0001452,2]
[338489122,1726699853852,-2638.38,0.0001452,2]
[338489123,1726699853862,-28643.4,0.0001452,2]
[338489124,1726699853872,-1074.51,0.0001452,2]
[338489125,1726699853882,-392.25207399,0.0001452,2]
[338489126,1726699853892,-3567.08,0.0001452,2]
[338489127,1726699853901,-2779.96,0.0001452,2]
[338489128,1726699853911,-500.0,0.0001452,2]
[338489129,1726699853921,-500.0,0.0001452,2]
[338489130,1726699853932,-500.0,0.0001452,2]
[338489131,1726699853942,-5087.6,0.0001452,2]
[338489132,1726699853952,-500.0,0.0001452,2]
[338489133,1726699853962,-1121.58,0.0001452,2]
[338489134,1726699853971,-1702.01,0.0001452,2]
[338489135,1726699853981,-436.58614677,0.0001452,2]
[338489136,1726699853991,-3313.39,0.0001452,2]
[338489137,1726699854000,-500.0,0.0001452,2]
[338489138,1726699854009,-1604.76,0.0001452,2]
[338489139,1726699854019,-2528.01,0.0001452,2]
[338489140,1726699854028,-2430.37328325,0.0001452,2]
[338489141,1726699854049,-2648.95671675,0.0001452,2]
[338489142,1726699854059,-947.77,0.0001452,2]
[338489143,1726699854068,-167.73820883,0.0001452,2]
[338489144,1726699854077,-662.25,0.0001452,2]
[338489145,1726699854087,-518.65,0.0001452,2]
[338489146,1726699854097,-500.0,0.0001452,2]
[338489147,1726699854106,-3987.43,0.0001452,2]
[338489148,1726699854116,-500.0,0.0001452,2]
[338489149,1726699854126,-2144.4,0.0001452,2]
[338489150,1726699854135,-7800.75,0.0001452,2]
[338489151,1726699854146,-690.26,0.0001452,2]
[338489152,1726699854155,-634.31,0.0001452,2]
[338489153,1726699854164,-553.57,0.0001452,2]
[338489154,1726699854175,-500.0,0.0001452,2]
[338489155,1726699854185,-1269.56,0.0001452,2]
[338489156,1726699854194,-500.0,0.0001452,2]
[338489157,1726699854203,-963.72,0.0001452,2]
[338489158,1726699854213,-500.0,0.0001452,2]
[338489159,1726699854222,-500.0,0.0001452,2]
[338489160,1726699854231,-676.9,0.0001452,2]
[338489161,1726699854241,-371.73662431,0.0001452,2]
[338489162,1726699854261,-3481.97987938,0.0001452,2]
[338489163,1726699854273,-1470.09349631,0.0001452,2]
[338489164,1726699854282,-699.35084469,0.0001452,2]
[338489165,1726699854294,-303.86,0.0001452,2]
[338489166,1726699858505,-8172.66028808,0.0001452,2]
[338489167,1726699860342,-1249.49886723,0.0001452,2]
[338489168,1726699860351,-707.27238277,0.0001452,2]
[338489169,1726699860366,-411.59999999,0.0001452,2]
[338489170,1726699860392,-335.01622342,0.0001452,2]
[338489171,1726699864777,3185.0,0.000101,5]
[338489172,1726699869438,250.0,0.00012583,2]
[338489173,1726699872107,740.0578,0.0001268,2]
[338489174,1726699872380,20416.8425,0.0001268,2]
[338489175,1726699875139,250.0,0.00012592,2]
[338489176,1726699885267,500.0,0.00011164,2]
[338489177,1726699923077,500.0,0.00011164,2]
[338489178,1726699923734,500.0,0.00011164,2]
[338489179,1726699925760,500.0,0.00012534,2]
[338489184,1726699945290,1484.6869,0.0001268,2]
[338489207,1726700212142,411.67,0.00011223,2]
[338489208,1726700429990,176.24,0.00010959,2]
[338489211,1726700743881,391.08,0.0001105,2]
[338489218,1726700986554,153.19,0.00012711,2]
[338489231,1726701032357,-1000.0,0.00012902,2]
[338489232,1726701032367,-302.54,0.0001291,2]
[338489233,1726701032377,-250.0,0.00012925,2]
[338489234,1726701032389,-159.73,0.00012925,2]
[338489235,1726701032399,-159.73,0.0001299,2]
[338489236,1726701032707,-2000.0,0.00012999,2]
[338489237,1726701032735,-238.43,0.00013045,2]
[338489238,1726701032745,-307.86,0.000131,2]
[338489239,1726701032755,-1014.66,0.000131,2]
[338489240,1726701032764,-347.94,0.00013122,2]
[338489241,1726701032773,-245.08,0.00013261,2]
[338489242,1726701032784,-179.99,0.00013314,2]
[338489243,1726701032794,-391.08,0.00013314,2]
[338489244,1726701032804,-585.5,0.00013334,2]
[338489247,1726701032813,-170.1,0.00013336,2]
[338489249,1726701032822,-2826.48881459,0.00013442,2]
[338489250,1726701032833,-2595.45439401,0.00013442,2]
[338489251,1726701032856,-284.51815666,0.00013442,2]
[338489252,1726701032867,-544.0998858,0.00013442,2]
[338489253,1726701032878,-942.89298596,0.00013442,2]
[338489254,1726701032889,-682.49820459,0.00013442,2]
[338489259,1726701038348,-1061.97783356,0.00013442,2]
[338489260,1726701038362,-1062.06972483,0.00013442,2]
[338489261,1726701038371,-229.45527517,0.00013442,2]
[338489262,1726701038383,-1698.02186945,0.00013442,2]
[338489264,1726701038397,-1304.84644794,0.00013442,2]
[338489266,1726701038407,-16959.06855206,0.00013689,2]
[338489267,1726701038418,-2931.71191177,0.00013689,2]
[338489268,1726701038429,-540.65357155,0.00013689,2]
[338489269,1726701038441,-527.44426267,0.00013689,2]
[338489270,1726701038451,-150.0,0.00013698,2]
[338489271,1726701038460,-400.85945074,0.00013699,2]
[338489272,1726701038472,-544.91633961,0.00013699,2]
[338489369,1726701039619,-1070.16174608,0.00013699,2]
[338489374,1726701039656,-279.36,0.00013699,2]
[338489376,1726701039668,-264.24,0.00013699,2]
[338489379,1726701039679,-27480.72739471,0.00013699,2]
[338489381,1726701039690,-1364.83123837,0.00013699,2]
[338489386,1726701039724,-16479.23383049,0.00013699,2]
[338489388,1726701039733,-2751.0,0.00013699,2]
[338489390,1726701039743,-150.0,0.00013699,2]
[338489392,1726701039752,-11852.93320545,0.00013699,2]
[338489394,1726701039762,-4461.84790807,0.00013699,2]
[338489396,1726701039773,-5533.35431226,0.00013699,2]
[338489398,1726701039785,-1266.25068988,0.00013699,2]
[338489400,1726701039796,-464.27999997,0.00013699,2]
[338489402,1726701039807,-1051.74850456,0.00013699,2]
[338489405,1726701039818,-567.02253439,0.00013699,2]
[338489407,1726701039830,-5818.65284542,0.00013699,2]
[338489409,1726701039839,-500.0,0.00013699,2]
[338489411,1726701039848,-191.9,0.00013699,2]
[338489413,1726701039857,-200.0,0.00013699,2]
[338489415,1726701039867,-2000.0,0.00013821,2]
[338489417,1726701039876,-752.99,0.00013836,2]
[338489419,1726701039884,-520.17,0.00013836,2]
[338489420,1726701039894,-753.16,0.00013836,2]
[338489422,1726701039903,-422.65,0.00013836,2]
[338489425,1726701039913,-753.16,0.00013836,2]
[338489427,1726701039923,-753.16,0.00013836,2]
[338489429,1726701039932,-422.65,0.00013836,2]
[338489431,1726701039942,-422.65,0.00013836,2]
[338489433,1726701039951,-753.16,0.00013836,2]
[338489435,1726701039960,-753.16,0.00013836,2]
[338489437,1726701039969,-1346.07,0.00013836,2]
[338489438,1726701039978,-97.07873808,0.00013866,2]
[338489441,1726701039994,-455.92126192,0.00013866,2]
[338489443,1726701040003,-1901.0,0.00013866,2]
[338489445,1726701040012,-248.0,0.00013866,2]
[338489447,1726701040022,-335.07873798,0.00013866,2]
[338489449,1726701040033,-3008.92126202,0.00013866,2]
[338489452,1726701040044,-806.0,0.00013866,2]
[338489454,1726701040055,-577.99179207,0.00013866,2]
[338489520,1726701040647,-1343.00820793,0.00013866,2]
[338489522,1726701040657,-128.14941636,0.000139,2]
[338489524,1726701040668,-185.73058364,0.000139,2]
[338489526,1726701040678,-500.0,0.00013904,2]
[338489528,1726701040688,-549.58584455,0.00013904,2]
[338489530,1726701040698,-500.0,0.00013904,2]
[338489532,1726701040707,-427.94,0.00013973,2]
[338489534,1726701040718,-150.0,0.00013973,2]
[338489537,1726701040727,-428.04,0.00013973,2]
[338489539,1726701040737,-300.0,0.00013973,2]
[338489541,1726701040748,-150.0,0.00013973,2]
[338489543,1726701040758,-715.0,0.00013973,2]
[338489545,1726701040768,-150.0,0.00013973,2]
[338489547,1726701040779,-150.0,0.00013973,2]
[338489549,1726701040790,-150.0,0.00013973,2]
[338489551,1726701040799,-428.04,0.00013973,2]
[338489553,1726701040809,-150.0,0.00013973,2]
[338489555,1726701040818,-150.0,0.00013973,2]
[338489557,1726701040828,-150.0,0.00013973,2]
[338489559,1726701040837,-150.0,0.00013973,2]
[338489561,1726701040846,-428.04,0.00013973,2]
[338489563,1726701040856,-150.0,0.00013973,2]
[338489565,1726701040865,-428.04,0.00013973,2]
[338489567,1726701040874,-428.04,0.00013973,2]
[338489569,1726701040884,-150.0,0.00013973,2]
[338489571,1726701040893,-150.0,0.00013973,2]
[338489573,1726701040903,-428.04,0.00013973,2]
[338489575,1726701040912,-359.99,0.00013973,2]
[338489577,1726701040921,-428.04,0.00013973,2]
[338489579,1726701040930,-150.0,0.00013973,2]
[338489581,1726701040941,-4478.19798165,0.00014041,2]
[338489584,1726701040953,-1218.78380385,0.00014041,2]
[338489586,1726701040964,-164.0182145,0.00014041,2]
[338489588,1726701040974,-494.33967555,0.00014041,2]
[338489590,1726701040986,-586.95947232,0.00014041,2]
[338489592,1726701040998,-64.70085213,0.00014041,2]
[338489594,1726701041008,-150.0,0.00014041,2]
[338489596,1726701041018,-6660.95,0.00014041,2]
[338489598,1726701041027,-1079.0,0.00014041,2]
[338489600,1726701041038,-752.82,0.00014055,2]
[338489602,1726701041047,-150.0,0.00014059,2]
[338489604,1726701041057,-2500.0,0.0001411,2]
[338489606,1726701041067,-15745.61771152,0.0001412,2]
[338489608,1726701041076,-500.0,0.00014169,2]
[338489610,1726701041085,-500.0,0.00014178,2]
[338489612,1726701041095,-500.0,0.00014186,2]
[338489614,1726701041105,-500.0,0.00014195,2]
[338489616,1726701041114,-15745.61771151,0.00014207,2]
[338489618,1726701041124,-79311.4503,0.0001421,2]
[338489620,1726701041134,-190.98665055,0.0001422,2]
[338489623,1726701041143,-244.46204665,0.0001422,2]
[338489625,1726701041153,-7500.0,0.0001422,2]
[338489627,1726701041162,-727.0,0.00014231,2]
[338489629,1726701041172,-176.81501871,0.00014242,2]
[338489631,1726701041182,-195.065688,0.00014247,2]
[338489633,1726701041192,-1261.0,0.0001427,2]
[338489635,1726701041202,-1547.0,0.0001427,2]
[338489636,1726701041211,-448.0,0.0001427,2]
[338489638,1726701041222,-624.0,0.0001427,2]
[338489640,1726701041232,-299.66750924,0.00014273,2]
[338489642,1726701041242,-15745.61771151,0.00014293,2]
[338489644,1726701041253,-150.0,0.00014294,2]
[338489646,1726701041263,-5110.8635,0.000143,2]
[338489648,1726701041273,-1000.0,0.000143,2]
[338489650,1726701041282,-152.4,0.0001431,2]
[338489652,1726701041293,-152.4,0.0001431,2]
[338489654,1726701041302,-152.4,0.0001431,2]
[338489656,1726701041311,-152.4,0.0001431,2]
[338489658,1726701041324,-152.4,0.0001431,2]
[338489660,1726701041334,-152.4,0.0001431,2]
[338489662,1726701041344,-152.4,0.0001431,2]
[338489664,1726701041354,-244.46204659,0.00014316,2]
[338489666,1726701041364,-500.0,0.00014319,2]
[338489668,1726701041374,-500.0,0.00014319,2]
[338489670,1726701041384,-500.0,0.00014319,2]
[338489672,1726701041396,-500.0,0.00014319,2]
[338489674,1726701041406,-500.0,0.00014319,2]
[338489676,1726701041416,-500.0,0.00014319,2]
[338489678,1726701041426,-500.0,0.00014319,2]
[338489680,1726701041436,-364.26364804,0.00014319,2]
[338489682,1726701041446,-1757380.10310574,0.0001432,2]
[338489684,1726701041456,-204.39729,0.00014375,2]
[338489686,1726701041465,-15745.61771151,0.0001438,2]
[338489688,1726701041475,-150.0,0.00014393,2]
[338489690,1726701041484,-1000.0,0.000144,2]
[338489692,1726701041495,-226.0,0.000144,2]
[338489694,1726701041504,-359.0,0.000144,2]
[338489697,1726701041514,-1000.0,0.000144,2]
[338489699,1726701041524,-244.46204659,0.00014411,2]
[338489701,1726701041533,-150.0,0.0001442,2]
[338489702,1726701041543,-1266.18127476,0.0001442,2]
[338489705,1726701041552,-308.63472768,0.0001442,2]
[338489707,1726701041561,-1058.69852512,0.0001442,2]
[338489708,1726701041571,-179.43123905,0.0001442,2]
[338489710,1726701041581,-421.35408527,0.0001442,2]
[338489713,1726701041591,-150.0,0.00014435,2]
[338489715,1726701041600,-150.0,0.00014454,2]
[338489717,1726701041610,-150.0,0.00014458,2]
[338489719,1726701041620,-15745.61771151,0.00014467,2]
[338489721,1726701041629,-150.0,0.00014468,2]
[338489723,1726701041639,-2000.0,0.00014483,2]
[338489725,1726701041648,-200.0,0.00014483,2]
[338489727,1726701041657,-308.63472768,0.000145,2]
[338489729,1726701041666,-244.46204659,0.00014507,2]
[338489731,1726701041676,-152.4,0.0001451,2]
[338489733,1726701041685,-1000.0,0.00014514,2]
[338489735,1726701041694,-500.0,0.00014519,2]
[338489737,1726701041703,-500.0,0.00014519,2]
[338489739,1726701041713,-500.0,0.00014519,2]
[338489741,1726701041722,-500.0,0.00014519,2]
[338489743,1726701041731,-140368.27056549,0.0001452,2]
[338489745,1726701041740,-155.16096,0.0001452,2]
[338489747,1726701041749,-151.0,0.0001452,2]
[338489749,1726701041758,-151.0,0.0001452,2]
[338489751,1726701041767,-151.0,0.0001452,2]
[338489753,1726701041777,-151.0,0.0001452,2]
[338489755,1726701041786,-151.0,0.0001452,2]
[338489756,1726701041795,-151.0,0.0001452,2]
[338489758,1726701041804,-151.0,0.0001452,2]
[338489760,1726701041813,-151.0,0.0001452,2]
[338489762,1726701041822,-151.0,0.0001452,2]
[338489764,1726701041832,-151.0,0.0001452,2]
[338489766,1726701041841,-151.0,0.0001452,2]
[338489768,1726701041850,-151.0,0.0001452,2]
[338489770,1726701041860,-151.0,0.0001452,2]
[338489772,1726701041869,-151.0,0.0001452,2]
[338489774,1726701041879,-151.0,0.0001452,2]
[338489776,1726701041888,-151.0,0.0001452,2]
[338489778,1726701041898,-151.0,0.0001452,2]
[338489780,1726701041907,-151.0,0.0001452,2]
[338489782,1726701041916,-190.053439,0.0001452,2]
[338489785,1726701041926,-500.0,0.0001452,2]
[338489787,1726701041937,-500.0,0.0001452,2]
[338489789,1726701041947,-500.0,0.0001452,2]
[338489791,1726701041956,-500.0,0.0001452,2]
[338489793,1726701041966,-507.71738167,0.0001452,2]
[338489795,1726701041975,-500.0,0.0001452,2]
[338489797,1726701041984,-500.0,0.0001452,2]
[338489799,1726701041994,-500.0,0.0001452,2]
[338489801,1726701042003,-500.0,0.0001452,2]
[338489802,1726701042013,-500.0,0.0001452,2]
[338489803,1726701042023,-500.0,0.0001452,2]
[338489804,1726701042036,-500.0,0.0001452,2]
[338489805,1726701042045,-151.0,0.0001452,2]
[338489806,1726701042054,-151.0,0.0001452,2]
[338489807,1726701042063,-500.0,0.0001452,2]
[338489808,1726701042072,-500.0,0.0001452,2]
[338489809,1726701042082,-500.0,0.0001452,2]
[338489810,1726701042092,-500.0,0.0001452,2]
[338489811,1726701042101,-500.0,0.0001452,2]
[338489812,1726701042111,-151.0,0.0001452,2]
[338489813,1726701042120,-151.0,0.0001452,2]
[338489814,1726701042130,-151.0,0.0001452,2]
[338489815,1726701042140,-151.0,0.0001452,2]
[338489816,1726701042149,-151.0,0.0001452,2]
[338489817,1726701042159,-151.0,0.0001452,2]
[338489818,1726701042168,-151.0,0.0001452,2]
[338489819,1726701042177,-500.0,0.0001452,2]
[338489820,1726701042187,-500.0,0.0001452,2]
[338489821,1726701042197,-500.0,0.0001452,2]
[338489823,1726701042206,-500.0,0.0001452,2]
[338489825,1726701042216,-500.0,0.0001452,2]
[338489827,1726701042226,-500.0,0.0001452,2]
[338489829,1726701042235,-500.0,0.0001452,2]
[338489831,1726701042245,-500.0,0.0001452,2]
[338489834,1726701042254,-500.0,0.0001452,2]
[338489836,1726701042264,-500.0,0.0001452,2]